[Event "AUT Bundesliga 2024-25"]
[Site "Austria"]
[Date "2025.04.04"]
[Round "8.33"]
[White "Martinovic, Sasa"]
[Black "Rubil, Marko"]
[Result "1-0"]
[Annotator "TA"]
[ECO "D02"]
[WhiteElo "2549"]
[BlackElo "2276"]
[PlyCount "91"]
[EventDate "2024.08.28"]
[EventType "team-tourn"]
[EventCountry "AUT"]
[SourceTitle "playchess.com"]
[Source "ChessBase"]
[SourceQuality "1"]
[TimeControl "40/5400+30:1800+30"]

{[%evp 9,91,32,53,49,45,41,48,50,52,14,12,0,0,0,6,2,2,0,0,0,0,0,7,-8,0,0,0,0,0,0,49,-1,0,-27,-23,-23,6,0,8,11,35,29,56,0,0,0,0,0,-10,-14,0,-18,7,3,10,-13,43,-91,49,43,14,27,32,41,71,60,190,187,322,316,410,391,400,400,399,403,658,641,682,638,753,762,775,771]} 1. Nf3 {[%emt 0:00:02]} d5 {[%emt 0:01:21]} 2. g3 {[%emt 0:00:05]} g6 {[%emt 0:01:00]} 3. Bg2 {[%emt 0:00:16]} Bg7 {[%emt 0:00:02]} 4. d4 {[%emt 0:00:19]} Nh6 {[%emt 0:00:07][%cal Bg8h6,Bh6f5,Bf5d6][%mdl 32]} 5. c3 {[%emt 0:00:18]} Nf5 {[%emt 0:00:08]} 6. h4 {[%emt 0:00:25][%cal Bh2h4,Bh4h5][%mdl 32] D02: 1 d4 d5 2 Nf3 sidelines, including 2...Nf6 3 g3 and 2...Nf6 3 Bf4.} h6 {[%emt 0:04:25]} 7. Nbd2 {[%emt 0:00:08]} Nd6 {[%emt 0:01:28]} 8. Nh2 $146 {[%emt 0:00:26] White is slightly better.} (8. Ne5 c6 9. e4 dxe4 10. Qe2 Nd7 11. Nxd7 Bxd7 12. Nxe4 Nxe4 13. Bxe4 Qa5 14. b4 {½-½ Kengis,E (2543)-Arlandi,E (2440) Australian op 2004 (5)}) 8... c6 {[%emt 0:00:54]} 9. h5 {[%emt 0:02:41]} g5 {[%emt 0:05:09]} 10. e4 {[%emt 0:00:08]} dxe4 {[%emt 0:07:28]} 11. Nxe4 {[%emt 0:00:04]} Nxe4 {[%emt 0:01:06]} 12. Bxe4 {[%emt 0:00:05]} Nd7 {[%emt 0:00:47]} 13. O-O {[%emt 0:03:58][%cal Bh1f1,Bf1e1,Be1e5][%mdl 32]} Nf6 {[%emt 0:00:18] Wards off Ng4} 14. Bg2 {[%emt 0:06:11]} Bf5 {[%emt 0:11:09]} 15. Re1 {[%emt 0:12:48]} Qd7 {[%emt 0:07:52]} 16. Nf3 {[%emt 0:03:18]} Bg4 {[%emt 0:21:36]} 17. Qa4 {[%emt 0:02:18] [#]} Nxh5 {[%emt 0:04:27][%cal Bf6h5,Bh5g7,Bg7f5,Bf5d6,Bd6c4,Bc4b2][%mdl 32]} 18. Ne5 {[%emt 0:07:48]} Bxe5 {[%emt 0:00:23]} 19. Rxe5 {[%emt 0:00:19]} O-O {[%emt 0:06:13]} (19... Bh3 $11) 20. Bd2 {[%emt 0:02:54]} ({White should try} 20. d5 $1 $14 cxd5 21. Qxd7 Bxd7 22. Bxd5 (22. Rxd5 Bc6 $11)) 20... f6 {[%emt 0:03:49]} 21. Re3 {[%emt 0:06:31]} Ng7 {[%emt 0:00:15]} 22. Rae1 {[%emt 0:00:47]} Rae8 {[%emt 0:01:16]} 23. Qxa7 {[%emt 0:14:32]} Nf5 {[%emt 0:00:54]} 24. Rd3 $1 {[%emt 0:00:31]} Nd6 {[%emt 0:04:07]} 25. d5 {[%emt 0:05:09]} Qf5 {[%emt 0:04:08]} 26. Qe3 {[%emt 0:14:28]} (26. Ree3 $1 $14) 26... Nc4 $1 $11 {[%emt 0:00:11][%csl LRb2,LRe3]} 27. Qd4 {[%emt 0:00:19]} Nxb2 {[%emt 0:00:32]} 28. Rde3 {[%emt 0:04:42] [#]} c5 $1 {[%emt 0:00:01]} 29. Qe4 {[%emt 0:01:16]} (29. Qxc5 Nd3 30. Rxd3 Qxd3 $17) 29... b5 {[%emt 0:04:27]} 30. d6 {[%emt 0:01:36]} e6 {[%emt 0:04:54]} (30... exd6 $2 31. Qxf5 (31. Qxe8 Rxe8 32. Rxe8+ Kf7 $18) 31... Bxf5 32. Rxe8 $18) 31. Qb7 $36 {[%emt 0:03:34][%cal Og2e4][%mdl 2048] White has the initiative.} Rb8 {[%emt 0:00:09]} 32. Qa7 {[%emt 0:01:12]} Qh7 {[%emt 0:01:47]} (32... e5 $1 $11) 33. Qxh7+ $14 {[%emt 0:05:03]} Kxh7 {[%emt 0:00:01]} 34. f3 {[%emt 0:00:00]} Bf5 {[%emt 0:00:17] ...e5 would now be deadly.} 35. g4 {[%emt 0:00:05]} Bg6 {[%emt 0:00:58]} 36. Rxe6 {[%emt 0:00:04]} Nd3 {[%emt 0:02:33] Dodges f4} 37. Re7+ {[%emt 0:00:35][%csl Oe7] Strong Square White (e7)} Kh8 {[%emt 0:00:24] A mistake that costs the game.} ({Black should try} 37... Rf7 $14 38. R1e6 Rxe7 39. Rxe7+ Kg8) 38. R1e6 $18 {[%emt 0:00:38]} c4 {[%emt 0:01:07]} (38... Rbd8 {keeps fighting.} 39. f4 Nxf4 40. Bxf4 gxf4) 39. d7 {[%emt 0:02:13]} Ne5 {[%emt 0:01:14]} 40. f4 {[%emt 0:00:45]} Nxg4 {[%emt 0:00:57] Black is weak on the dark squares} 41. Bc6 {[%emt 0:06:53]} ({Weaker is} 41. fxg5 hxg5 42. Rd6 (42. Bxg5 Bf5 $11) 42... Bf5 $18) 41... Bf5 {[%emt 0:13:37]} 42. Rd6 {[%emt 0:01:03]} gxf4 {[%emt 0:05:25]} (42... Rg8 $142 43. fxg5 (43. Re8 Rd8 $18) 43... hxg5 44. Bxb5 (44. Re8 Rd8 $18) 44... Rgd8) 43. Bxf4 {[%emt 0:03:02] White is clearly winning. This pair of bishops is nice.} Rg8 {[%emt 0:00:17]} 44. Kf1 {[%emt 0:01:14] Black must now prevent Rd5.} Bg6 {[%emt 0:03:11]} 45. Rde6 {[%emt 0:03:04]} Rbf8 {[%emt 0:06:21]} 46. Re8 {[%emt 0:01:09] Weighted Error Value: White=0.07 (flawless) /Black=0.33  Mistake:       	White=2     	Black=5      Inaccurate:     	White=2     	Black=4      OK:         	White=16    	Black=13     Best:        	White=5     	Black=1      Strong:       	White=1     	Black=1} 1-0

[Event "AUT Bundesliga 2024-25"]
[Site "Austria"]
[Date "2025.04.04"]
[Round "8.34"]
[White "Kuthan, Andreas"]
[Black "Bosiocic, Marin"]
[Result "0-1"]
[Annotator "TA"]
[ECO "C41"]
[WhiteElo "2136"]
[BlackElo "2522"]
[PlyCount "70"]
[EventDate "2024.08.28"]
[EventType "team-tourn"]
[EventCountry "AUT"]
[SourceTitle "playchess.com"]
[Source "ChessBase"]
[SourceQuality "1"]
[TimeControl "40/5400+30:1800+30"]

{[%evp 9,70,19,29,0,7,0,0,0,50,51,63,40,87,91,87,79,83,84,90,82,82,81,88,88,88,62,102,91,92,92,126,87,105,83,88,84,94,65,70,63,69,12,112,0,107,-118,-114,-127,-119,-104,-101,-104,-96,-337,-159,-263,-248,-405,-344,-297,-304,-29997,-29998]} 1. e4 {[%emt 0:00:02]} e5 {[%emt 0:00:07]} 2. Nf3 {[%emt 0:00:06]} d6 {[%emt 0:00:07]} 3. d4 {[%emt 0:00:18]} exd4 {[%emt 0:00:05]} 4. Nxd4 {[%emt 0:00:08]} Nf6 {[%emt 0:00:03]} 5. Nc3 {[%emt 0:00:08]} Be7 {[%emt 0:00:08]} 6. Qf3 {[%emt 0:04:37] C41: Philidor Defence.} O-O {[%emt 0:05:42]} 7. Nf5 {[%emt 0:01:19]} Bxf5 {[%emt 0:00:16]} 8. Qxf5 {[%emt 0:00:06] The position is equal.} Nc6 {[%emt 0:00:22]} (8... c6 $11) 9. Be3 $14 {[%emt 0:10:40]} Ne5 {[%emt 0:01:28][%cal Bc6e5,Be5d7,Bd7b6][%mdl 32]} 10. Be2 {[%emt 0:04:16] Prevents Nfg4} g6 {[%emt 0:07:05]} (10... c6 $14) 11. Qh3 $16 {[%emt 0:14:42]} Qd7 $146 {[%emt 0:02:56]} (11... b5 12. O-O-O b4 13. Nd5 Nxd5 14. exd5 Rb8 15. f4 Nd7 16. g4 Re8 17. g5 Bf8 {1-0 Nijboer,F (2510)-Bosboom,M (2380) Leeuwarden op 1994 (6)}) 12. Qxd7 {[%emt 0:05:29]} Nexd7 {[%emt 0:00:32]} 13. O-O-O {[%emt 0:01:51]} c6 {[%emt 0:00:30]} 14. f4 {[%emt 0:08:20]} Rfe8 {[%emt 0:02:36]} 15. Bf3 {[%emt 0:01:26]} Bf8 {[%emt 0:00:16][%cal Of6e4]} 16. Rhe1 {[%emt 0:01:20]} Nb6 {[%emt 0:01:18]} 17. b3 {[%emt 0:09:17]} Nfd7 {[%emt 0:00:49]} 18. a4 {[%emt 0:02:29]} a5 {[%emt 0:00:32]} 19. g3 {[%emt 0:12:04]} f5 {[%emt 0:05:13]} 20. exf5 {[%emt 0:06:11]} gxf5 {[%emt 0:00:05]} 21. Bd4 {[%emt 0:01:43]} d5 {[%emt 0:00:29]} 22. Ne2 {[%emt 0:04:21]} Bb4 {[%emt 0:05:03]} 23. Rg1 {[%emt 0:01:01]} c5 $1 {[%emt 0:03:00]} 24. Bb2 {[%emt 0:03:06][%cal Oc2c3] c3! is the strong threat. A strong pair of Bishops.} d4 {[%emt 0:00:27]} 25. Rd3 {[%emt 0:02:49]} (25. g4 $14) 25... c4 {[%emt 0:08:31]} (25... Nf6 $11 {keeps the balance.}) 26. Rxd4 {[%emt 0:00:05]} (26. bxc4 $1 $16 Nc5 27. Bxd4 (27. Rxd4 Re3 $11)) 26... Re3 {[%emt 0:01:08] [#]} (26... cxb3 $1 $11 27. cxb3 Nc5) 27. Bxb7 $2 {[%emt 0:02:26]} (27. Rxd7 $1 $16 {is forced if you want to stay better.} Nxd7 28. Bd5+ (28. Bxb7 $2 Rae8 $19) 28... Kf8 29. Bxc4) 27... Rae8 $17 {[%emt 0:01:46]} (27... Rxe2 28. Bxa8 c3 29. Ba1 $16) (27... Ra7 $2 28. Rxd7 Nxd7 29. Bd5+ Kf8 30. Bxc4 $18) 28. Bd5+ {[%emt 0:02:12]} Nxd5 {[%emt 0:04:07] Black is more active.} 29. Rxd5 {[%emt 0:00:04] [#]} Nb6 $36 {[%emt 0:01:51][%mdl 2048] White is under strong pressure.} (29... Rxe2 30. Rxd7 c3 31. Ba1 $15) (29... c3 30. Nxc3 Nb6 31. Rb5 Bxc3 32. Bxc3 (32. Rxb6 $2 Re1+ 33. Rxe1 Rxe1#) 32... Rxc3 33. Rg2 $16 (33. Rxb6 Re2 $11)) 30. Rxf5 {[%emt 0:00:11]} Rxe2 {[%emt 0:00:23]} 31. Be5 $2 {[%emt 0:02:30] This move loses the game for White.} (31. Bd4 $17) 31... Nd7 {[%emt 0:02:48]} (31... Rxh2 32. Rd1 $17) (31... cxb3 $19 {is more deadly.} 32. Rg5+ Kf7 33. Rf5+ Ke7 34. cxb3 Rc8+ (34... Rxh2 $2 35. Bd4 $19) 35. Kb1 Nd5 (35... Rxh2 $2 36. Bd4 $19)) 32. bxc4 {[%emt 0:00:42]} (32. Rg5+ $17 {might work better.} Kf8 33. Bg7+ Kf7 34. Bd4) 32... Nxe5 $19 {[%emt 0:00:32]} (32... Rxh2 33. Rg5+ Kf8 34. Rf5+ Kg8 (34... Ke7 $2 35. Kb1 $19) 35. Bd4 $19) 33. fxe5 $2 {[%emt 0:00:15]} (33. Rxe5 {only move.} R8xe5 34. fxe5) 33... Ba3+ {[%emt 0:01:09]} ({Don't take} 33... Rxh2 34. Kb2) (33... Rc8 34. Rf4 $19) 34. Kd1 {[%emt 0:00:43]} Rxh2 {[%emt 0:00:05] ( -> ...Rd8+)} 35. Rgf1 $2 {[%emt 0:00:20]} (35. Rf3 $19 Bb4 36. Kc1) 35... Rd8+ {[%emt 0:00:16] Weighted Error Value: White=0.66/Black=0.23 (precise)   Loses game:     	White=1     	---        Missed win:     	---       	Black=1      Mistake:       	White=6     	Black=4      Inaccurate:     	White=2     	Black=2      OK:         	White=9     	Black=9      Best:        	White=2     	Black=7      Strong:       	---       	Black=1} 0-1

[Event "AUT Bundesliga 2024-25"]
[Site "Austria"]
[Date "2025.04.04"]
[Round "8.35"]
[White "Livaic, Leon"]
[Black "Lovrinovic, Christian"]
[Result "1-0"]
[Annotator "TA"]
[ECO "E71"]
[WhiteElo "2536"]
[BlackElo "2062"]
[PlyCount "97"]
[EventDate "2024.08.28"]
[EventType "team-tourn"]
[EventCountry "AUT"]
[SourceTitle "playchess.com"]
[Source "ChessBase"]
[SourceQuality "1"]
[TimeControl "40/5400+30:1800+30"]

{[%evp 13,96,18,16,27,24,31,47,46,80,54,81,52,42,55,58,49,86,83,89,94,87,96,110,95,126,114,170,174,175,172,175,173,169,170,195,192,202,185,400,247,254,256,256,253,247,238,336,267,427,372,363,381,543,522,585,621,619,556,592,617,612,591,725,637,635,635,596,591,1139,1139,6379,5693,5709,5601,29987,29988,29992,29993,29993,1016,29994,29995,29998,29999,29999]} 1. d4 {[%emt 0:00:03]} Nf6 {[%emt 0:00:04]} 2. c4 {[%emt 0:00:07]} g6 {[%emt 0:00:04]} 3. Nc3 {[%emt 0:00:06]} Bg7 {[%emt 0:00:05]} 4. e4 {[%emt 0:00:06]} d6 {[%emt 0:00:03]} 5. h3 {[%emt 0:00:26]} O-O {[%emt 0:00:40]} 6. Be3 {[%emt 0:00:05]} e5 {[%emt 0:00:29]} 7. d5 {[%emt 0:00:06]} Na6 {[%emt 0:00:11]} 8. g4 {[%emt 0:00:23] E71: King's Indian: 4 e4 d6 5 h3.} Nc5 {[%emt 0:00:21]} 9. f3 {[%emt 0:00:04]} a5 {[%emt 0:04:27][%cal Ba7a5,Ba5a4,Ba4a3][%mdl 32]} 10. Qd2 {[%emt 0:00:18] White is slightly better.} a4 {[%emt 0:16:53]} 11. Nge2 {[%emt 0:01:35]} Ne8 $146 {[%emt 0:07:03]} (11... c6 12. h4 cxd5 13. cxd5 Qa5 14. Ng3 Bd7 15. h5 b5 16. hxg6 fxg6 17. Qh2 b4 {0-1 Meskovs,N (2568)-Gabrielian,A (2458) Mikhail Tal Blitz 2020 (15)}) 12. h4 {[%emt 0:01:21]} f5 {[%emt 0:00:06]} 13. gxf5 {[%emt 0:00:36]} gxf5 {[%emt 0:00:01]} 14. O-O-O {[%emt 0:03:08]} a3 {[%emt 0:01:43]} 15. b3 {[%emt 0:01:20] Black is now going downhill.} f4 {[%emt 0:00:16]} 16. Bf2 {[%emt 0:00:24]} Kh8 {[%emt 0:17:56]} 17. Kb1 {[%emt 0:02:49]} Bd7 {[%emt 0:03:06]} 18. Bh3 {[%emt 0:01:27]} Nf6 {[%emt 0:01:34]} 19. h5 {[%emt 0:08:47]} Ng8 {[%emt 0:09:28]} (19... Bxh3 $16 20. Rxh3 Bh6) 20. Bxc5 $18 {[%emt 0:15:03]} dxc5 {[%emt 0:00:41]} 21. Bxd7 {[%emt 0:03:49]} Qxd7 {[%emt 0:00:08]} 22. Na4 {[%emt 0:01:39]} b6 {[%emt 0:18:54]} 23. Nec3 {[%emt 0:00:49]} Rf6 {[%emt 0:00:56]} 24. Nb5 {[%emt 0:01:21]} Bf8 {[%emt 0:00:10]} 25. Rhg1 {[%emt 0:03:57][%cal Og1g8]} Rh6 $2 {[%emt 0:03:02]} (25... Nh6 {was called for.} 26. Nxa3 Bg7) 26. Qg2 {[%emt 0:08:53][%csl Gg1][%cal Rg2g8] [#]} (26. Nxa3 Nf6 $16) 26... Bd6 {[%emt 0:04:36]} 27. Nxd6 {[%emt 0:05:48]} ({Weaker is} 27. Nxa3 Rxh5 28. Rh1 Nf6 $14) 27... Rxd6 {[%emt 0:00:16]} 28. Qg5 {[%emt 0:00:31]} Qe7 {[%emt 0:02:10] Black is weak on the light squares} 29. Nc3 $40 {[%emt 0:00:54][%mdl 128] Black is in trouble.} Rh6 {[%emt 0:02:20]} (29... Rd7 $142 30. Qxe7 Nxe7) 30. Nb5 {[%emt 0:00:46]} Rd8 {[%emt 0:03:49]} (30... Re8 $142 31. d6 (31. Nxa3 Qf7 $18) 31... cxd6 32. Nxd6 (32. Nxa3 Qxg5 33. Rxg5 Ne7 $14) 32... Qxg5 (32... Rxd6 $2 {perishes.} 33. Rxd6 Rf8 34. h6 $18) 33. Rxg5 Rf8 34. Rxe5 Nf6) 31. Nxa3 {[%emt 0:03:21]} Qxg5 {[%emt 0:00:42]} 32. Rxg5 {[%emt 0:00:04]} Re8 {[%emt 0:00:02]} (32... Nf6 $142 33. Rxe5 Rxh5) 33. Nb5 {[%emt 0:00:13]} Re7 {[%emt 0:00:29]} 34. Rdg1 {[%emt 0:03:25]} Nf6 {[%emt 0:00:04]} 35. Rf5 {[%emt 0:00:09]} Rg7 {[%emt 0:02:57]} 36. Rxg7 {[%emt 0:00:05]} Kxg7 {[%emt 0:00:01]} 37. Rxe5 {[%emt 0:00:39]} Nxh5 {[%emt 0:00:50][%mdl 4096] Endgame KRN-KRN. White is a pawn up.} 38. Re7+ {[%emt 0:01:04]} Kf8 {[%emt 0:01:00]} 39. Rxc7 {[%emt 0:00:05]} Ng7 {[%emt 0:00:32]} 40. e5 {[%emt 0:00:38]} Rh3 {[%emt 0:00:17]} 41. d6 {[%emt 0:31:23] aiming for Rc8+.} Rxf3 {[%emt 0:30:26] [#]} 42. Rxg7 $1 {[%emt 0:02:37] KRN-KR} Rf1+ {[%emt 0:00:00]} (42... Rd3 43. Rxh7) 43. Kc2 {[%emt 0:00:00] White wants to mate with d7.} f3 {[%emt 0:00:00][%cal Bf4f3,Bf3f2][%mdl 32]} 44. d7 {[%emt 0:00:00]} f2 {[%emt 0:00:00]} 45. d8=Q+ {[%emt 0:00:00]} Kxg7 {[%emt 0:00:00]} 46. Qf6+ {[%emt 0:00:00]} Kg8 {[%emt 0:00:00]} 47. Nd6 {[%emt 0:00:00] White mates.} Ra1 {[%emt 0:00:00]} 48. Qf7+ {[%emt 0:00:00]} Kh8 {[%emt 0:00:00]} 49. Qf8# {[%emt 0:00:00] Weighted Error Value: White=0.12 (very precise) /Black=0.77  Mistake:       	---       	Black=5      Inaccurate:     	White=3     	Black=5      OK:         	White=17    	Black=7      Best:        	White=1     	Black=1} 1-0

[Event "AUT Bundesliga 2024-25"]
[Site "Austria"]
[Date "2025.04.04"]
[Round "8.36"]
[White "Karelina, Polina"]
[Black "Saric, Ante"]
[Result "0-1"]
[Annotator "TA"]
[ECO "B23"]
[WhiteElo "1903"]
[BlackElo "2490"]
[PlyCount "66"]
[EventDate "2024.08.28"]
[EventType "team-tourn"]
[EventCountry "AUT"]
[SourceTitle "playchess.com"]
[Source "ChessBase"]
[SourceQuality "1"]
[TimeControl "40/5400+30:1800+30"]

{[%evp 14,66,-25,-29,-25,-60,-58,-55,-40,-110,-108,-173,-191,-177,-178,-172,-179,-170,-122,-118,-111,-175,-177,-180,-160,-196,-96,-96,-95,-102,-100,-93,-95,-93,-85,-91,-86,-81,-87,-143,-123,-141,-53,-174,-179,-175,-179,-177,-193,-185,-191,-613,-579,-29998,-29999]} 1. e4 {[%emt 0:00:04]} c5 {[%emt 0:00:05]} 2. Nc3 {[%emt 0:00:41]} d6 {[%emt 0:00:13]} 3. f4 {[%emt 0:00:38]} g6 {[%emt 0:00:08]} 4. Nf3 {[%emt 0:01:09]} Bg7 {[%emt 0:00:06]} 5. Bc4 {[%emt 0:03:44]} Nc6 {[%emt 0:00:24]} 6. a3 {[%emt 0:00:11]} e6 {[%emt 0:00:32]} 7. d3 {[%emt 0:03:32]} Nge7 {[%emt 0:00:08]} 8. O-O {[%emt 0:04:13]} O-O {[%emt 0:00:18] B23: Closed Sicilian: Lines without g3.} 9. Kh1 {[%emt 0:03:12]} b6 {[%emt 0:01:52]} 10. Qe1 {[%emt 0:11:14]} Bb7 {[%emt 0:02:55] Black is slightly better.} 11. h4 $146 {[%emt 0:07:16]} ({Better is} 11. Ba2 $15) (11. Ba2 Nd4 12. Nxd4 Bxd4 13. Ne2 Bg7 14. Ng3 Re8 15. Qf2 Bd4 16. Qf3 Qc7 17. Qg4 {1-0 Torres Cueto,J (2075)-Hemmat,A (1774) Pan American-ch U16 27th 2016 (6)}) 11... Nd4 {[%emt 0:01:18]} 12. Bb3 {[%emt 0:04:58]} (12. Nxd4 $17 {was called for.} cxd4 13. Nd1) 12... Nxb3 $19 {[%emt 0:04:50]} 13. cxb3 {[%emt 0:00:21]} Ba6 {[%emt 0:00:23]} 14. Qd1 {[%emt 0:08:15]} d5 {[%emt 0:05:01]} 15. Re1 {[%emt 0:04:39]} dxe4 {[%emt 0:03:59]} (15... Nc6 $19 16. e5 Nd4 17. Nxd4 Qxh4+ (17... cxd4 $2 18. Ne2 $19) 18. Kg1 cxd4) 16. dxe4 $17 {[%emt 0:00:27]} Nc6 {[%emt 0:00:05]} 17. Qxd8 {[%emt 0:02:32]} (17. Be3 $17) 17... Rfxd8 $19 {[%emt 0:00:26]} 18. e5 {[%emt 0:01:02]} Na5 {[%emt 0:01:31]} 19. Nd2 {[%emt 0:03:23]} Bb7 {[%emt 0:01:27]} (19... Bf8 $19 {and Black stays clearly on top.} 20. Nce4 Rd3 21. Nf6+ Kh8) 20. b4 $17 {[%emt 0:01:37]} cxb4 {[%emt 0:01:07]} 21. axb4 {[%emt 0:00:06]} Nc6 {[%emt 0:00:06]} 22. b5 {[%emt 0:02:15]} Nb4 $36 {[%emt 0:00:22][%mdl 2048] [#] Black is on the roll.} 23. Re2 {[%emt 0:02:46]} a6 {[%emt 0:00:36] Black is more active.} 24. Nde4 {[%emt 0:02:26]} axb5 {[%emt 0:11:39]} 25. Rxa8 {[%emt 0:00:15]} Rxa8 {[%emt 0:00:06]} 26. Nd6 {[%emt 0:03:14]} (26. Be3 $142) 26... Bc6 {[%emt 0:10:05]} 27. Be3 {[%emt 0:01:00][%cal Oh1h2] [#]} f6 {[%emt 0:01:44]} (27... Nd3 $1 $17 {Hoping for ...Ra1+.} 28. Ncxb5 Ra1+ 29. Kh2 Nxe5 30. Bxb6 (30. fxe5 $2 {too greedy.} Bxe5+ $19) 30... Ng4+ 31. Kg3 f5) 28. Bxb6 {[%emt 0:03:32] This costs White the game.} (28. exf6 $1 $15 Bxf6 29. Ndxb5) 28... fxe5 $19 {[%emt 0:02:46]} 29. fxe5 {[%emt 0:00:21]} Nd3 {[%emt 0:00:08]} 30. Bd4 {[%emt 0:01:46]} b4 {[%emt 0:12:45]} 31. Nce4 {[%emt 0:02:03]} Nxe5 {[%emt 0:00:53]} 32. Nc5 $2 {[%emt 0:00:48]} (32. Nf6+ Bxf6 33. Bxe5 Bxe5 (33... Bxh4 $2 34. Rc2 $19) 34. Rxe5) 32... Nf3 {[%emt 0:02:37] ( -> ...Ra1+)} 33. Bxg7 {[%emt 0:00:46]} Ra1+ {[%emt 0:00:27] Weighted Error Value: White=0.61/Black=0.14 (very precise)   Mistake:       	White=6     	Black=3      Inaccurate:     	White=2     	---        OK:         	White=7     	Black=12     Best:        	White=1     	---} 0-1